[Event "*** Titled Tuesday Blitz"]
[Site "Chess.com"]
[Date "2021.04.27"]
[Round "8"]
[White "Witik"]
[Black "Karttunen"]
[Result "0-1"]
[WhiteElo "2679"]
[BlackElo "2525"]
[TimeControl "180+1"]
[EndTime "11:26:43 PDT"]
[Termination "Karttunen won on time"]

1. d4 {[%clk 0:03:00.9]} 1... Nf6 {[%clk 0:02:58.7]} 2. c4 {[%clk 0:02:59]} 2...
c5 {[%clk 0:02:57.5]} 3. d5 {[%clk 0:02:58.3]} 3... b5 {[%clk 0:02:56.9]} 4. Nf3
{[%clk 0:02:58.3]} 4... b4 {[%clk 0:02:55.2]} 5. Nbd2 {[%clk 0:02:57.6]} 5... g6
{[%clk 0:02:54]} 6. e4 {[%clk 0:02:57.7]} 6... d6 {[%clk 0:02:53.7]} 7. b3
{[%clk 0:02:55.5]} 7... Bg7 {[%clk 0:02:53.4]} 8. Bb2 {[%clk 0:02:55.7]} 8...
O-O {[%clk 0:02:53]} 9. Qc2 {[%clk 0:02:56]} 9... e5 {[%clk 0:02:50.4]} 10. g3
{[%clk 0:02:36.6]} 10... Nh5 {[%clk 0:02:45.3]} 11. Be2 {[%clk 0:02:26.1]} 11...
f5 {[%clk 0:02:38.3]} 12. Nh4 {[%clk 0:02:12.5]} 12... Nf4 {[%clk 0:02:29.2]}
13. gxf4 {[%clk 0:02:01.2]} 13... Qxh4 {[%clk 0:02:27.8]} 14. fxe5 {[%clk
0:02:01]} 14... fxe4 {[%clk 0:02:22.4]} 15. e6 {[%clk 0:00:24.9]} 15... Rxf2
{[%clk 0:01:46.1]} 16. Kd1 {[%clk 0:00:18]} 16... Bxb2 {[%clk 0:01:20.5]} 17.
Qxb2 {[%clk 0:00:17.9]} 17... Bxe6 {[%clk 0:01:19.5]} 18. dxe6 {[%clk 0:00:17]}
18... Nc6 {[%clk 0:01:20]} 19. Re1 {[%clk 0:00:11.7]} 19... Nd4 {[%clk
0:01:18.2]} 20. Nf1 {[%clk 0:00:09.4]} 20... Nf3 {[%clk 0:01:07.3]} 21. e7
{[%clk 0:00:07.1]} 21... Qxe7 {[%clk 0:00:56.3]} 22. Ng3 {[%clk 0:00:04.5]}
22... Nxe1 {[%clk 0:00:38.2]} 23. Kxe1 {[%clk 0:00:04.8]} 23... Rxh2 {[%clk
0:00:38.2]} 24. Qd2 {[%clk 0:00:03.5]} 24... Rf8 {[%clk 0:00:34.3]} 25. Qe3
{[%clk 0:00:03.6]} 25... Qe5 {[%clk 0:00:30]} 26. Rd1 {[%clk 0:00:03.1]} 26...
Rh3 {[%clk 0:00:24.2]} 0-1

[Event "*** Titled Tuesday Blitz"]
[Site "Chess.com"]
[Date "2021.04.27"]
[Round "8"]
[White "rynos0411"]
[Black "Kostukov_Alex"]
[Result "0-1"]
[WhiteElo "2463"]
[BlackElo "2320"]
[TimeControl "180+1"]
[EndTime "11:26:45 PDT"]
[Termination "Kostukov_Alex won on time"]

1. d4 {[%clk 0:03:00.9]} 1... g6 {[%clk 0:03:00.1]} 2. c4 {[%clk 0:03:00.9]}
2... Bg7 {[%clk 0:02:59.9]} 3. Nc3 {[%clk 0:03:01.5]} 3... d6 {[%clk 0:02:59.7]}
4. e4 {[%clk 0:03:00.4]} 4... e5 {[%clk 0:02:58.3]} 5. d5 {[%clk 0:02:59.1]}
5... f5 {[%clk 0:02:58.2]} 6. h4 {[%clk 0:02:47]} 6... Nf6 {[%clk 0:02:55.8]} 7.
h5 {[%clk 0:02:43.4]} 7... O-O {[%clk 0:02:31.1]} 8. hxg6 {[%clk 0:02:37.3]}
8... hxg6 {[%clk 0:02:31.1]} 9. Bg5 {[%clk 0:02:37.9]} 9... Qe8 {[%clk
0:02:27.7]} 10. Bd3 {[%clk 0:02:13.9]} 10... Na6 {[%clk 0:02:25.6]} 11. a3
{[%clk 0:02:08.9]} 11... Nc5 {[%clk 0:02:25.6]} 12. Bc2 {[%clk 0:02:08.8]} 12...
a5 {[%clk 0:02:25.2]} 13. b4 {[%clk 0:02:04.8]} 13... axb4 {[%clk 0:02:24.9]}
14. axb4 {[%clk 0:02:05.2]} 14... Rxa1 {[%clk 0:02:25.1]} 15. Qxa1 {[%clk
0:02:05]} 15... Ncxe4 {[%clk 0:02:09.9]} 16. Nxe4 {[%clk 0:02:02]} 16... Nxe4
{[%clk 0:02:08.4]} 17. Bh6 {[%clk 0:01:52.9]} 17... Bxh6 {[%clk 0:01:49.5]} 18.
Rxh6 {[%clk 0:01:51.6]} 18... Kg7 {[%clk 0:01:50.4]} 19. Rh3 {[%clk 0:01:38.5]}
19... Ng5 {[%clk 0:01:25.4]} 20. Rg3 {[%clk 0:01:34.1]} 20... Qe7 {[%clk
0:01:25.9]} 21. f4 {[%clk 0:01:04.4]} 21... Nf7 {[%clk 0:01:13.9]} 22. Nf3
{[%clk 0:00:54.2]} 22... Qf6 {[%clk 0:01:10.2]} 23. Qc1 {[%clk 0:00:32.3]} 23...
Rh8 {[%clk 0:01:07.3]} 24. Kf2 {[%clk 0:00:24]} 24... e4 {[%clk 0:01:04.3]} 25.
Ng5 {[%clk 0:00:19.4]} 25... Qd4+ {[%clk 0:00:56.7]} 26. Qe3 {[%clk 0:00:18.2]}
26... Qxc4 {[%clk 0:00:57.2]} 27. Bd1 {[%clk 0:00:09.3]} 27... Rh1 {[%clk
0:00:49.8]} 28. Be2 {[%clk 0:00:08.3]} 28... Qxb4 {[%clk 0:00:46.9]} 29. Ne6+
{[%clk 0:00:07.7]} 29... Bxe6 {[%clk 0:00:46]} 30. Rxg6+ {[%clk 0:00:03.8]}
30... Kxg6 {[%clk 0:00:44.9]} 31. Qg3+ {[%clk 0:00:04.7]} 31... Kf6 {[%clk
0:00:45.4]} 32. Qg8 {[%clk 0:00:01.4]} 32... Qd4+ {[%clk 0:00:39.9]} 33. Kg3
{[%clk 0:00:01.1]} 33... Qe3+ {[%clk 0:00:40.3]} 34. Bf3 {[%clk 0:00:01.4]}
34... exf3 {[%clk 0:00:37.1]} 0-1

[Event "*** Titled Tuesday Blitz"]
[Site "Chess.com"]
[Date "2021.04.27"]
[Round "8"]
[White "Ibrayevnb"]
[Black "Lyschko"]
[Result "1-0"]
[WhiteElo "2480"]
[BlackElo "2288"]
[TimeControl "180+1"]
[EndTime "11:26:47 PDT"]
[Termination "Ibrayevnb won by resignation"]

1. d4 {[%clk 0:03:00.9]} 1... d6 {[%clk 0:02:59.2]} 2. e4 {[%clk 0:03:00.3]}
2... Nf6 {[%clk 0:02:58.9]} 3. Nc3 {[%clk 0:03:00.1]} 3... e5 {[%clk 0:02:59.4]}
4. Nf3 {[%clk 0:03:00]} 4... Nbd7 {[%clk 0:02:58.3]} 5. Bc4 {[%clk 0:02:59.5]}
5... Be7 {[%clk 0:02:58.3]} 6. O-O {[%clk 0:02:59.2]} 6... O-O {[%clk
0:02:58.1]} 7. a4 {[%clk 0:02:59.8]} 7... c6 {[%clk 0:02:56.2]} 8. Re1 {[%clk
0:02:57.8]} 8... exd4 {[%clk 0:02:53.2]} 9. Nxd4 {[%clk 0:02:57.5]} 9... Ne5
{[%clk 0:02:52.9]} 10. Bf1 {[%clk 0:02:56.9]} 10... Re8 {[%clk 0:02:52.9]} 11.
f4 {[%clk 0:02:54.5]} 11... Ng6 {[%clk 0:02:52]} 12. h3 {[%clk 0:02:45.6]} 12...
Bf8 {[%clk 0:02:43.3]} 13. g3 {[%clk 0:02:44.9]} 13... Qb6 {[%clk 0:02:39.1]}
14. a5 {[%clk 0:02:41.7]} 14... Qc5 {[%clk 0:02:35.4]} 15. Kh2 {[%clk
0:02:29.8]} 15... d5 {[%clk 0:02:20.1]} 16. e5 {[%clk 0:02:23.3]} 16... Ne4
{[%clk 0:02:13.8]} 17. Nxe4 {[%clk 0:02:19.9]} 17... dxe4 {[%clk 0:02:13.6]} 18.
Bg2 {[%clk 0:02:12]} 18... Rd8 {[%clk 0:01:58.1]} 19. c3 {[%clk 0:02:11.6]}
19... Qe7 {[%clk 0:01:49.3]} 20. Qh5 {[%clk 0:02:04.2]} 20... f6 {[%clk
0:01:38.5]} 21. exf6 {[%clk 0:01:27.2]} 21... Qxf6 {[%clk 0:01:35.7]} 22. Bxe4
{[%clk 0:01:23.7]} 22... Bd6 {[%clk 0:01:27.6]} 23. a6 {[%clk 0:01:16.4]} 23...
bxa6 {[%clk 0:01:21.7]} 24. Nxc6 {[%clk 0:01:14.3]} 24... Rf8 {[%clk 0:01:16.2]}
25. Be3 {[%clk 0:01:04.5]} 25... Bb7 {[%clk 0:01:08.7]} 26. Bd4 {[%clk
0:00:59.8]} 26... Qf7 {[%clk 0:00:25.3]} 27. Bd5 {[%clk 0:00:59.1]} 27... Bxc6
{[%clk 0:00:25.4]} 28. Bxf7+ {[%clk 0:00:57.4]} 28... Rxf7 {[%clk 0:00:25.9]}
29. Rxa6 {[%clk 0:00:56.4]} 29... Nxf4 {[%clk 0:00:23.9]} 30. Qxf7+ {[%clk
0:00:45.4]} 30... Kxf7 {[%clk 0:00:21.6]} 31. Rxc6 {[%clk 0:00:45.5]} 31... Nd3
{[%clk 0:00:15.7]} 32. Rf1+ {[%clk 0:00:44.8]} 32... Ke7 {[%clk 0:00:15.3]} 33.
Bxg7 {[%clk 0:00:41.2]} 33... Kd7 {[%clk 0:00:14.4]} 34. Rxd6+ {[%clk
0:00:40.3]} 34... Kxd6 {[%clk 0:00:13.9]} 35. Rd1 {[%clk 0:00:40.1]} 35... Re8
{[%clk 0:00:11.1]} 36. Rxd3+ {[%clk 0:00:39.8]} 36... Kc6 {[%clk 0:00:11.4]} 37.
Rd2 {[%clk 0:00:38.9]} 1-0

[Event "*** Titled Tuesday Blitz"]
[Site "Chess.com"]
[Date "2021.04.27"]
[Round "8"]
[White "Sueetin"]
[Black "Buffy7"]
[Result "0-1"]
[WhiteElo "2505"]
[BlackElo "2689"]
[TimeControl "180+1"]
[EndTime "11:26:48 PDT"]
[Termination "Buffy7 won by resignation"]

1. d4 {[%clk 0:03:00.9]} 1... Nf6 {[%clk 0:02:59.3]} 2. c4 {[%clk 0:03:01.4]}
2... g6 {[%clk 0:02:59.4]} 3. Nc3 {[%clk 0:03:01.7]} 3... d5 {[%clk 0:02:58.5]}
4. cxd5 {[%clk 0:03:02.6]} 4... Nxd5 {[%clk 0:02:59.3]} 5. e4 {[%clk 0:03:03.3]}
5... Nxc3 {[%clk 0:02:59.2]} 6. bxc3 {[%clk 0:03:04.2]} 6... Bg7 {[%clk
0:02:59.7]} 7. Be3 {[%clk 0:03:04.9]} 7... c5 {[%clk 0:03:00.1]} 8. Nf3 {[%clk
0:03:05.5]} 8... Qa5 {[%clk 0:02:59.6]} 9. Qd2 {[%clk 0:03:06.1]} 9... O-O
{[%clk 0:02:59.4]} 10. Rc1 {[%clk 0:03:06.2]} 10... Nd7 {[%clk 0:02:59.6]} 11.
Bd3 {[%clk 0:02:56.4]} 11... b5 {[%clk 0:02:59.3]} 12. O-O {[%clk 0:02:52.4]}
12... Nf6 {[%clk 0:02:41.7]} 13. h3 {[%clk 0:02:45.2]} 13... Bb7 {[%clk
0:02:38.6]} 14. d5 {[%clk 0:02:38.9]} 14... c4 {[%clk 0:02:32.5]} 15. Bb1 {[%clk
0:02:36.6]} 15... Rad8 {[%clk 0:02:31.7]} 16. Bc5 {[%clk 0:02:30.1]} 16... Rfe8
{[%clk 0:02:24.1]} 17. Qe3 {[%clk 0:02:30.3]} 17... e6 {[%clk 0:02:07.2]} 18.
Bxa7 {[%clk 0:02:20.2]} 18... Ra8 {[%clk 0:01:33.5]} 19. Bb6 {[%clk 0:02:08.7]}
19... Qa6 {[%clk 0:01:32.9]} 20. dxe6 {[%clk 0:01:58.1]} 20... Rxe6 {[%clk
0:01:33.8]} 21. Bd4 {[%clk 0:01:53.9]} 21... Nxe4 {[%clk 0:01:17.8]} 22. Bxg7
{[%clk 0:01:48.5]} 22... Kxg7 {[%clk 0:01:08.3]} 23. Nd4 {[%clk 0:01:42]} 23...
Ree8 {[%clk 0:00:56.7]} 24. Bxe4 {[%clk 0:01:31.9]} 24... Rxe4 {[%clk
0:00:44.7]} 25. Qg5 {[%clk 0:01:30.6]} 25... b4 {[%clk 0:00:43.2]} 26. Nf5+
{[%clk 0:01:24.7]} 26... Kh8 {[%clk 0:00:42]} 27. Nh6 {[%clk 0:01:16.6]} 27...
b3 {[%clk 0:00:24.6]} 28. axb3 {[%clk 0:00:55.4]} 28... cxb3 {[%clk 0:00:24.2]}
29. Rcd1 {[%clk 0:00:43.2]} 29... f6 {[%clk 0:00:19.6]} 30. Qc5 {[%clk
0:00:37.8]} 30... Qc6 {[%clk 0:00:19.7]} 31. Qb4 {[%clk 0:00:13.5]} 31... Rxb4
{[%clk 0:00:18.5]} 0-1

[Event "*** Titled Tuesday Blitz"]
[Site "Chess.com"]
[Date "2021.04.27"]
[Round "8"]
[White "MarkoPe"]
[Black "SergeyShtyka"]
[Result "0-1"]
[WhiteElo "2256"]
[BlackElo "2396"]
[TimeControl "180+1"]
[EndTime "11:26:48 PDT"]
[Termination "SergeyShtyka won by resignation"]

1. e4 {[%clk 0:02:58.6]} 1... c5 {[%clk 0:02:59.3]} 2. Nf3 {[%clk 0:02:58.6]}
2... Nc6 {[%clk 0:02:58.9]} 3. d4 {[%clk 0:02:58.7]} 3... cxd4 {[%clk
0:02:59.3]} 4. Nxd4 {[%clk 0:02:59.6]} 4... Nf6 {[%clk 0:02:59.8]} 5. Nc3 {[%clk
0:02:59.9]} 5... e5 {[%clk 0:02:59.8]} 6. Ndb5 {[%clk 0:03:00.4]} 6... h6 {[%clk
0:02:59.7]} 7. Nd6+ {[%clk 0:02:55.2]} 7... Bxd6 {[%clk 0:02:59.7]} 8. Qxd6
{[%clk 0:02:56.1]} 8... Qe7 {[%clk 0:03:00]} 9. Qxe7+ {[%clk 0:02:55.5]} 9...
Kxe7 {[%clk 0:03:00.3]} 10. Bc4 {[%clk 0:02:56.2]} 10... d6 {[%clk 0:03:00.1]}
11. f3 {[%clk 0:02:55.2]} 11... Be6 {[%clk 0:03:00.1]} 12. Bxe6 {[%clk
0:02:53.1]} 12... fxe6 {[%clk 0:03:01]} 13. Be3 {[%clk 0:02:53.7]} 13... a6
{[%clk 0:02:59.8]} 14. O-O-O {[%clk 0:02:53.5]} 14... Rac8 {[%clk 0:02:59.8]}
15. Bb6 {[%clk 0:02:46.9]} 15... Nd7 {[%clk 0:02:58.5]} 16. Be3 {[%clk
0:02:46.6]} 16... b5 {[%clk 0:02:57.9]} 17. Kb1 {[%clk 0:02:41.2]} 17... Na5
{[%clk 0:02:57.4]} 18. Rd3 {[%clk 0:02:37.2]} 18... Nc4 {[%clk 0:02:57]} 19. Bf2
{[%clk 0:02:37.9]} 19... Nc5 {[%clk 0:02:56.6]} 20. Bxc5 {[%clk 0:02:37.8]}
20... Rxc5 {[%clk 0:02:56.4]} 21. Rhd1 {[%clk 0:02:38.4]} 21... Rhc8 {[%clk
0:02:50.5]} 22. Ne2 {[%clk 0:02:21]} 22... Nxb2 {[%clk 0:02:46.3]} 23. Kxb2
{[%clk 0:02:14.5]} 23... Rxc2+ {[%clk 0:02:45.7]} 24. Kb3 {[%clk 0:02:14.1]}
24... Rxe2 {[%clk 0:02:46.1]} 25. Rxd6 {[%clk 0:02:14.3]} 25... a5 {[%clk
0:02:33]} 26. Rd7+ {[%clk 0:02:11.9]} 26... Kf6 {[%clk 0:02:32.7]} 27. Rb7
{[%clk 0:02:11.7]} 27... Re3+ {[%clk 0:02:24.6]} 28. Kb2 {[%clk 0:02:09.8]}
28... Re2+ {[%clk 0:02:24.8]} 29. Kb3 {[%clk 0:02:09.9]} 29... a4+ {[%clk
0:02:15.4]} 30. Kb4 {[%clk 0:02:09.3]} 30... Rxa2 {[%clk 0:02:14.2]} 31. Rdd7
{[%clk 0:01:58.1]} 31... Kg5 {[%clk 0:02:13.3]} 32. g3 {[%clk 0:01:42.4]} 32...
Rb2+ {[%clk 0:02:06.2]} 33. Ka5 {[%clk 0:01:38.3]} 33... Rxh2 {[%clk 0:02:01]}
34. Rxg7+ {[%clk 0:01:37.8]} 34... Kh5 {[%clk 0:02:01.4]} 35. Rxb5 {[%clk
0:01:09.5]} 35... Ra8+ {[%clk 0:01:53.1]} 36. Kb6 {[%clk 0:00:47.3]} 36... Rb8+
{[%clk 0:01:52.8]} 37. Kc6 {[%clk 0:00:44.2]} 37... Rc2+ {[%clk 0:01:39.9]} 38.
Kd6 {[%clk 0:00:31]} 38... Rxb5 {[%clk 0:01:37.1]} 39. Kxe6 {[%clk 0:00:28]}
39... Rf2 {[%clk 0:01:27.9]} 40. Rf7 {[%clk 0:00:06.5]} 40... Kg6 {[%clk
0:01:17.1]} 41. Rf6+ {[%clk 0:00:05.3]} 41... Kg7 {[%clk 0:01:17.3]} 42. Rf7+
{[%clk 0:00:03.5]} 42... Kg8 {[%clk 0:01:17.6]} 43. Rf5 {[%clk 0:00:03.6]} 43...
Rb6+ {[%clk 0:01:16.2]} 44. Kd5 {[%clk 0:00:03.6]} 44... a3 {[%clk 0:01:10.8]}
45. g4 {[%clk 0:00:03.8]} 45... a2 {[%clk 0:01:10.8]} 0-1

[Event "*** Titled Tuesday Blitz"]
[Site "Chess.com"]
[Date "2021.04.27"]
[Round "8"]
[White "Margency"]
[Black "Grieve72"]
[Result "1-0"]
[WhiteElo "2663"]
[BlackElo "2513"]
[TimeControl "180+1"]
[EndTime "11:26:49 PDT"]
[Termination "Margency won on time"]

1. e4 {[%clk 0:03:00.9]} 1... c5 {[%clk 0:02:58.8]} 2. Nf3 {[%clk 0:03:00.6]}
2... e6 {[%clk 0:02:59.3]} 3. d4 {[%clk 0:03:01.1]} 3... cxd4 {[%clk 0:03:00.2]}
4. Nxd4 {[%clk 0:03:01.8]} 4... Nc6 {[%clk 0:03:00.7]} 5. Nc3 {[%clk 0:03:02]}
5... Qc7 {[%clk 0:03:01.3]} 6. Be3 {[%clk 0:03:02.1]} 6... a6 {[%clk 0:03:01.5]}
7. Qd2 {[%clk 0:03:02.7]} 7... Nf6 {[%clk 0:03:01.4]} 8. O-O-O {[%clk 0:03:03]}
8... Bb4 {[%clk 0:03:01.8]} 9. f3 {[%clk 0:03:03.2]} 9... Ne5 {[%clk 0:03:02.3]}
10. Qe1 {[%clk 0:02:58.2]} 10... Bxc3 {[%clk 0:02:59.6]} 11. Qxc3 {[%clk
0:02:58.1]} 11... Qxc3 {[%clk 0:03:00.1]} 12. bxc3 {[%clk 0:02:58.7]} 12... d5
{[%clk 0:03:01]} 13. exd5 {[%clk 0:02:49]} 13... Nxd5 {[%clk 0:03:01.9]} 14. Bd2
{[%clk 0:02:49.6]} 14... b5 {[%clk 0:02:57.1]} 15. Re1 {[%clk 0:02:47.8]} 15...
Nc4 {[%clk 0:02:48]} 16. Bxc4 {[%clk 0:02:46.3]} 16... bxc4 {[%clk 0:02:48.9]}
17. Kb2 {[%clk 0:02:38.6]} 17... O-O {[%clk 0:02:41.2]} 18. Ka1 {[%clk
0:02:38.4]} 18... Bd7 {[%clk 0:02:34]} 19. Rb1 {[%clk 0:02:38.1]} 19... Rab8
{[%clk 0:02:27.3]} 20. Rhe1 {[%clk 0:02:31.9]} 20... Ba4 {[%clk 0:02:14.9]} 21.
f4 {[%clk 0:02:25.6]} 21... h6 {[%clk 0:01:46.6]} 22. Re5 {[%clk 0:02:14]} 22...
Rxb1+ {[%clk 0:01:34.8]} 23. Kxb1 {[%clk 0:02:13.9]} 23... Rb8+ {[%clk
0:01:35.2]} 24. Kc1 {[%clk 0:02:13.8]} 24... Bd7 {[%clk 0:01:12.9]} 25. Re4
{[%clk 0:01:41.7]} 25... Nf6 {[%clk 0:01:07]} 26. Re2 {[%clk 0:01:38.3]} 26...
Nd5 {[%clk 0:01:03.6]} 27. f5 {[%clk 0:01:24.5]} 27... exf5 {[%clk 0:00:41.5]}
28. Re5 {[%clk 0:01:24.5]} 28... Be6 {[%clk 0:00:38.5]} 29. Nxf5 {[%clk
0:01:09.4]} 29... Bxf5 {[%clk 0:00:25.2]} 30. Rxf5 {[%clk 0:01:09.4]} 30... Rd8
{[%clk 0:00:18.1]} 31. Re5 {[%clk 0:01:08.9]} 31... Kf8 {[%clk 0:00:07.7]} 32.
Re4 {[%clk 0:01:08.8]} 32... Rc8 {[%clk 0:00:08.3]} 33. Rd4 {[%clk 0:01:07.7]}
33... Rc5 {[%clk 0:00:07.9]} 34. Re4 {[%clk 0:01:04.6]} 34... f5 {[%clk
0:00:05.9]} 35. Re5 {[%clk 0:01:02.3]} 35... g6 {[%clk 0:00:04.2]} 36. Bxh6+
{[%clk 0:01:00.1]} 36... Kf7 {[%clk 0:00:04.2]} 37. Be3 {[%clk 0:00:59.8]} 37...
Ra5 {[%clk 0:00:02.6]} 38. Bd4 {[%clk 0:00:53.5]} 38... g5 {[%clk 0:00:01.2]}
39. a4 {[%clk 0:00:52.1]} 1-0

[Event "*** Titled Tuesday Blitz"]
[Site "Chess.com"]
[Date "2021.04.27"]
[Round "8"]
[White "jacky72"]
[Black "platy3"]
[Result "1-0"]
[WhiteElo "2743"]
[BlackElo "2841"]
[TimeControl "180+1"]
[EndTime "11:26:52 PDT"]
[Termination "jacky72 won on time"]

1. d4 {[%clk 0:03:00.9]} 1... Nf6 {[%clk 0:02:58.8]} 2. c4 {[%clk 0:03:00.9]}
2... e6 {[%clk 0:02:52.9]} 3. Nf3 {[%clk 0:02:58.2]} 3... d5 {[%clk 0:02:53.1]}
4. Nc3 {[%clk 0:02:57.9]} 4... dxc4 {[%clk 0:02:53.3]} 5. e3 {[%clk 0:02:57.9]}
5... a6 {[%clk 0:02:53]} 6. Bxc4 {[%clk 0:02:58.4]} 6... b5 {[%clk 0:02:53.1]}
7. Bb3 {[%clk 0:02:59]} 7... Bb7 {[%clk 0:02:53.7]} 8. O-O {[%clk 0:02:59.6]}
8... Nbd7 {[%clk 0:02:54.2]} 9. e4 {[%clk 0:03:00.3]} 9... c5 {[%clk 0:02:51.2]}
10. e5 {[%clk 0:02:57.7]} 10... cxd4 {[%clk 0:02:44]} 11. Qxd4 {[%clk
0:02:53.7]} 11... Bc5 {[%clk 0:02:04.3]} 12. Qf4 {[%clk 0:02:42.6]} 12... Bxf3
{[%clk 0:01:40.3]} 13. exf6 {[%clk 0:02:31.2]} 13... Bb7 {[%clk 0:01:39.6]} 14.
fxg7 {[%clk 0:02:26.9]} 14... Rg8 {[%clk 0:01:39.8]} 15. Ne4 {[%clk 0:01:42.7]}
15... Rxg7 {[%clk 0:01:37]} 16. g3 {[%clk 0:01:42.8]} 16... Qb6 {[%clk
0:01:24.4]} 17. Nxc5 {[%clk 0:01:25.3]} 17... Nxc5 {[%clk 0:01:20.2]} 18. Be3
{[%clk 0:01:17.3]} 18... Qc6 {[%clk 0:01:05.5]} 19. f3 {[%clk 0:01:15.6]} 19...
Nxb3 {[%clk 0:01:01.3]} 20. axb3 {[%clk 0:01:15.6]} 20... Qd5 {[%clk 0:01:00.1]}
21. Rad1 {[%clk 0:01:01.5]} 21... Qxb3 {[%clk 0:00:57.2]} 22. Bd4 {[%clk
0:00:54.4]} 22... Rg6 {[%clk 0:00:54.2]} 23. Qc7 {[%clk 0:00:46.4]} 23... Kf8
{[%clk 0:00:13.6]} 24. Qxb7 {[%clk 0:00:43.1]} 24... Re8 {[%clk 0:00:13.2]} 25.
Bc5+ {[%clk 0:00:39.6]} 25... Kg8 {[%clk 0:00:13.6]} 26. Qc6 {[%clk 0:00:33.4]}
26... Rb8 {[%clk 0:00:11.3]} 27. Qc7 {[%clk 0:00:29.5]} 27... Re8 {[%clk
0:00:07.7]} 28. Rd8 {[%clk 0:00:29.9]} 28... Rxd8 {[%clk 0:00:06.5]} 29. Qxd8+
{[%clk 0:00:30.8]} 29... Kg7 {[%clk 0:00:06.3]} 30. Bd4+ {[%clk 0:00:31.7]}
30... f6 {[%clk 0:00:05.4]} 31. Qe7+ {[%clk 0:00:31.7]} 31... Kg8 {[%clk
0:00:05.5]} 32. Rc1 {[%clk 0:00:26.6]} 1-0

[Event "*** Titled Tuesday Blitz"]
[Site "Chess.com"]
[Date "2021.04.27"]
[Round "8"]
[White "Loy_Konstantin"]
[Black "olksuna"]
[Result "0-1"]
[WhiteElo "2373"]
[BlackElo "2631"]
[TimeControl "180+1"]
[EndTime "11:26:53 PDT"]
[Termination "olksuna won on time"]

1. e4 {[%clk 0:03:00.9]} 1... e6 {[%clk 0:03:00.1]} 2. d3 {[%clk 0:03:00.8]}
2... d5 {[%clk 0:02:59.6]} 3. Nd2 {[%clk 0:03:01.3]} 3... Nf6 {[%clk 0:02:59.3]}
4. Ngf3 {[%clk 0:03:01.6]} 4... c5 {[%clk 0:02:59.8]} 5. g3 {[%clk 0:03:01.9]}
5... Nc6 {[%clk 0:03:00.5]} 6. Bg2 {[%clk 0:03:02.3]} 6... Be7 {[%clk 0:03:01]}
7. O-O {[%clk 0:03:02.8]} 7... O-O {[%clk 0:03:01.6]} 8. Re1 {[%clk 0:03:03.5]}
8... b5 {[%clk 0:02:56.3]} 9. e5 {[%clk 0:03:03.4]} 9... Nd7 {[%clk 0:02:55.9]}
10. Nf1 {[%clk 0:03:04]} 10... Bb7 {[%clk 0:02:54.4]} 11. h4 {[%clk 0:03:04.2]}
11... Qc7 {[%clk 0:02:54.1]} 12. Bf4 {[%clk 0:03:03.5]} 12... Rfc8 {[%clk
0:02:54.6]} 13. h5 {[%clk 0:03:00.9]} 13... h6 {[%clk 0:02:54.3]} 14. g4 {[%clk
0:02:55.8]} 14... Qd8 {[%clk 0:02:45.3]} 15. Qd2 {[%clk 0:02:46.6]} 15... Nd4
{[%clk 0:02:30]} 16. N1h2 {[%clk 0:02:38.3]} 16... Nxf3+ {[%clk 0:02:10.1]} 17.
Nxf3 {[%clk 0:02:38.2]} 17... d4 {[%clk 0:02:08]} 18. g5 {[%clk 0:02:18.2]}
18... hxg5 {[%clk 0:02:06.9]} 19. Bxg5 {[%clk 0:02:06.8]} 19... Bxf3 {[%clk
0:02:01.4]} 20. Bxe7 {[%clk 0:02:06.5]} 20... Qxe7 {[%clk 0:02:02.3]} 21. Bxf3
{[%clk 0:02:06.3]} 21... Rab8 {[%clk 0:01:57.3]} 22. Qf4 {[%clk 0:02:03.5]}
22... c4 {[%clk 0:01:27.1]} 23. Qxd4 {[%clk 0:01:23.3]} 23... cxd3 {[%clk
0:01:25.2]} 24. cxd3 {[%clk 0:01:16.9]} 24... Qg5+ {[%clk 0:01:21.9]} 25. Qg4
{[%clk 0:01:13.9]} 25... Nxe5 {[%clk 0:01:20.2]} 26. Rxe5 {[%clk 0:00:52.8]}
26... Qxe5 {[%clk 0:01:18.9]} 27. h6 {[%clk 0:00:36]} 27... Qf6 {[%clk
0:01:14.1]} 28. Kg2 {[%clk 0:00:28.7]} 28... Rc5 {[%clk 0:01:02.7]} 29. Kf1
{[%clk 0:00:16.2]} 29... Qxh6 {[%clk 0:00:57.8]} 30. Qg3 {[%clk 0:00:11.8]}
30... Rbc8 {[%clk 0:00:56.4]} 31. Re1 {[%clk 0:00:11.1]} 31... Rc1 {[%clk
0:00:56]} 32. Rxc1 {[%clk 0:00:07.7]} 32... Qxc1+ {[%clk 0:00:52.3]} 33. Kg2
{[%clk 0:00:07.8]} 33... Qxb2 {[%clk 0:00:50.1]} 34. Be4 {[%clk 0:00:06.6]}
34... Qf6 {[%clk 0:00:45]} 35. Qh3 {[%clk 0:00:05.3]} 35... Qg5+ {[%clk
0:00:43.1]} 36. Kf3 {[%clk 0:00:04.2]} 36... f5 {[%clk 0:00:39.6]} 37. Bb7
{[%clk 0:00:01.6]} 37... Rc3 {[%clk 0:00:38.4]} 0-1